bitfinex-derivatives/quotes_ETHF0:USTF0_20250704
["timestamp","ask_amount","ask_price","bid_price","bid_amount"]
[1751640876308,0.79438,2516.6,2516.5,3.2078]
[1751640876507,37.33538,2516.6,2516.5,3.2078]
[1751640877413,37.33538,2516.6,2516.5,4.00221]
[1751640879314,0.79438,2516.6,2516.5,4.00221]
[1751640879510,37.33338,2516.6,2516.5,4.00221]
[1751640881617,37.33338,2516.6,2516.5,3.2078]
[1751640881818,37.33338,2516.6,2516.5,4.00221]
[1751640882018,37.33338,2516.6,2516.5,3.2078]
[1751640883419,37.33338,2516.6,2516.5,4.00221]
[1751640883618,37.33338,2516.6,2516.5,4.71241]
[1751640884417,37.33338,2516.6,2516.5,3.918]
[1751640885326,37.33338,2516.6,2516.5,4.71241]
[1751640886419,0.79438,2516.6,2516.5,4.71241]
[1751640886619,37.32738,2516.6,2516.5,4.71241]
[1751640889723,37.32738,2516.6,2516.5,3.918]
[1751640890323,37.32738,2516.6,2516.5,4.71241]
[1751640890623,37.32738,2516.6,2516.5,3.918]
[1751640891521,37.32738,2516.6,2516.5,3.2078]
[1751640892628,37.32738,2516.6,2516.5,4.00221]
[1751640893123,37.32738,2516.6,2516.5,3.2078]
[1751640893621,37.32738,2516.6,2516.5,4.00221]
[1751640894423,0.79438,2516.6,2516.5,0.79441]
[1751640894624,37.32238,2516.6,2516.5,0.79441]
[1751640895221,37.32238,2516.6,2516.5,2.14311]
[1751640895421,37.32038,2516.6,2516.5,2.14311]
[1751640895820,37.31938,2516.6,2516.5,2.14311]
[1751640896021,37.31938,2516.6,2516.5,5.31951416]
[1751640896727,37.31938,2516.6,2516.5,2.14311]
[1751640897020,37.31938,2516.6,2516.5,5.31951416]
[1751640903930,37.31938,2516.6,2516.5,3.97081416]
[1751640905532,36.525,2516.6,2516.5,3.97081416]
[1751640906231,36.525,2516.6,2516.5,0.79441]
[1751640906531,37.31938,2516.6,2516.5,0.79441]
[1751640906727,0.79438,2516.7,2516.6,0.79433]
[1751640906928,37.30838,2516.7,2516.6,7.17783189]
[1751640907933,37.30838,2516.7,2516.6,3.2078]
[1751640908528,37.30838,2516.7,2516.6,4.00218]
[1751640909033,37.30838,2516.7,2516.6,7.17788189]
[1751640909429,37.30838,2516.7,2516.6,3.2078]
[1751640909630,37.30838,2516.7,2516.6,6.38350189]
[1751640909933,37.30838,2516.7,2516.6,3.2078]
[1751640910330,0.79438,2516.6,2516.5,3.17570189]
[1751640911531,0.79441,2516.5,2516.4,3.17570189]
[1751640911732,1.43351,2516.5,2516.4,3.17570189]
[1751640911932,2.77201,2516.5,2516.4,3.17570189]
[1751640912229,0.79444,2516.4,2516.3,3.17570189]
[1751640912537,38.64794,2516.4,2516.3,3.17570189]
[1751640913237,0.79451,2516.2,2516.1,3.17570189]
[1751640917237,0.79454,2516.1,2516.0,7.07000189]
[1751640917439,37.29954,2516.1,2516.0,7.86457189]
[1751640917638,37.29954,2516.1,2516.0,4.68887]
[1751640918138,37.29954,2516.1,2516.0,7.86207223]
[1751640918340,37.29954,2516.1,2516.0,4.68887]
[1751640918745,37.29954,2516.1,2516.0,7.86207198]
[1751640919037,0.79454,2516.1,2516.0,7.86207198]
[1751640920143,37.30052,2516.2,2516.1,0.79454]
[1751640920439,37.29848,2516.4,2516.3,0.79444]
[1751640920742,37.29848,2516.4,2516.3,4.00224]
[1751640921637,37.29848,2516.4,2516.3,3.2078]
[1751640921838,37.29848,2516.4,2516.2,0.6828]
[1751640921839,0.79447,2516.3,2516.2,0.6828]
[1751640922341,0.79447,2516.3,2516.2,1.47731]
[1751640922642,37.29847,2516.4,2516.3,0.79447]
[1751640922941,37.29847,2516.4,2516.3,4.00227]
[1751640924340,11.316,2516.6,2516.4,0.79441]
[1751640924341,0.79443,2516.5,2516.4,0.79441]
[1751640924543,37.29643,2516.5,2516.4,0.79441]
[1751640924740,37.29643,2516.5,2516.4,2.08681]
[1751640925243,11.316,2516.6,2516.4,2.08681]
[1751640925244,12.11038,2516.6,2516.5,0.79441]
[1751640925445,48.61038,2516.6,2516.5,2.08681]
[1751640927745,0.79434,2516.8,2516.7,0.79432]
[1751640927945,37.29034,2516.8,2516.7,0.79432]
[1751640928346,37.29034,2516.8,2516.7,3.8714868]
[1751640928548,37.29034,2516.8,2516.7,1.49292]
[1751640928747,37.29034,2516.8,2516.7,3.87148667]
[1751640928947,37.29034,2516.8,2516.7,3.87148673]
[1751640929547,37.29034,2516.8,2516.7,3.07716673]
[1751640930446,37.29034,2516.8,2516.7,3.87151673]
[1751640930847,37.29034,2516.8,2516.7,5.19301673]
[1751640931151,0.79434,2516.8,2516.7,5.19301673]
[1751640931350,0.79428,2517.1,2517.0,0.79422]
[1751640931648,37.28528,2517.1,2517.0,6.38016774]
[1751640931844,37.28528,2517.1,2517.0,4.00202]
[1751640933053,0.79398,2517.9,2517.8,0.79398]
[1751640933350,0.79396,2518.0,2517.9,0.79394]
[1751640933551,0.79386,2518.3,2518.2,0.79385]
[1751640933753,37.27986,2518.3,2518.2,0.79385]
[1751640934144,44.0078,2518.5,2518.1,3.2078]
[1751640934352,0.7937,2518.8,2518.7,0.7937]
[1751640934644,57.218,2518.9,2518.8,0.79368]
[1751640934944,11.305,2519.0,2518.9,0.79365]
[1751640935151,0.79355,2519.3,2519.1,0.79358]
[1751640935454,36.485,2519.2,2519.1,4.00138]
[1751640935640,37.27856,2519.2,2519.1,3.2078]
[1751640936151,36.485,2519.2,2519.1,4.00139]
[1751640936345,37.27856,2519.2,2519.1,3.2078]
[1751640937650,37.26856,2519.2,2519.1,3.2078]
[1751640938541,38.45896,2519.2,2518.8,3.2078]
[1751640938750,0.79365,2518.9,2518.8,3.2078]
[1751640938948,37.26765,2518.9,2518.8,3.2078]
[1751640939149,37.25965,2518.9,2518.8,3.2078]
[1751640941452,37.25965,2518.9,2518.5,3.2078]
[1751640941453,1.98434,2518.7,2518.5,3.2078]
[1751640941754,37.25975,2518.6,2518.5,3.2078]
[1751640941954,38.63375,2518.6,2518.5,3.2078]
[1751640944157,49.93275,2518.6,2518.5,3.2078]
[1751640944752,0.79387,2518.2,2518.1,3.2078]
[1751640946458,0.79387,2518.2,2518.1,4.00171]
[1751640946653,36.46,2518.5,2518.1,4.522]
[1751640946855,0.79384,2518.3,2518.2,1.3142]
[1751640947064,0.79384,2518.3,2518.2,4.522]
[1751640947960,0.79384,2518.3,2518.2,3.2078]
[1751640953564,0.79384,2518.3,2518.2,4.00167]
[1751640955765,0.79384,2518.3,2518.2,0.79387]
[1751640955969,0.79384,2518.3,2518.2,4.00167]
[1751640956363,0.79384,2518.3,2518.2,3.2078]
[1751640957771,2.12384,2518.3,2518.2,3.2078]
[1751640958171,0.79394,2518.0,2517.9,3.2078]
[1751640961160,18.47984,2518.0,2517.9,3.2078]
[1751640961360,13.47984,2518.0,2517.9,3.2078]
[1751640962160,0.79404,2517.7,2517.6,6.89600114]
[1751640962364,37.24904,2517.7,2517.6,6.89600114]
[1751640963367,37.24904,2517.7,2517.6,7.69007114]
[1751640963563,37.24904,2517.7,2517.6,6.89600114]
[1751640965273,37.24904,2517.7,2517.6,1.3145]
[1751640966473,37.24904,2517.7,2517.6,0.6696]
[1751640966663,0.79413,2517.4,2517.3,5.58150114]
[1751640966863,36.456,2517.5,2517.4,0.79411]
[1751640967062,14.5038,2518.5,2517.5,1.98525]
[1751640967268,0.79393,2518.1,2517.9,4.00175]
[1751640967473,0.79391,2518.1,2518.0,2.14144]
[1751640968471,0.79391,2518.1,2518.0,1.3475]
[1751640969168,1.98465,2518.3,2517.8,2.37211367]
[1751640969376,0.79397,2517.9,2517.8,2.37211367]
[1751640970871,0.79397,2517.9,2517.8,3.16611367]
[1751640971071,0.794,2517.8,2517.7,3.8883]
[1751640971773,0.794,2517.8,2517.7,4.68233]
[1751640972077,0.794,2517.8,2517.7,7.05759721]
[1751640972671,0.794,2517.8,2517.7,6.26356721]
[1751640973074,0.794,2517.8,2517.7,7.05759721]
[1751640973673,0.794,2517.8,2517.7,6.26356721]
[1751640974075,0.794,2517.8,2517.7,7.05759721]
[1751640976679,0.794,2517.8,2517.7,6.26356721]
[1751640978481,0.794,2517.8,2517.7,3.05576721]
[1751640979388,0.794,2517.8,2517.7,3.84979721]
[1751640979791,0.794,2517.8,2517.7,3.05576721]
[1751640980089,0.794,2517.8,2517.7,3.84979721]
[1751640980289,0.794,2517.8,2517.7,3.05576721]
[1751640982396,0.794,2517.8,2517.7,2.37526721]
[1751640983499,0.794,2517.8,2517.7,3.16929721]
[1751640983693,37.248,2517.8,2517.7,6.37709721]
[1751640983892,37.248,2517.8,2517.7,4.00183]
[1751640984187,37.248,2517.8,2517.7,3.2078]
[1751640987303,0.79403,2517.7,2517.6,8.55047486]
[1751640987498,0.79403,2517.7,2517.6,7.75643486]
[1751640987698,0.79403,2517.7,2517.6,8.55050486]
[1751640990107,0.79403,2517.7,2517.6,7.75643486]
[1751640990302,0.79403,2517.7,2517.6,8.55050486]
[1751640992305,0.79403,2517.7,2517.6,7.75643486]
[1751640992504,0.79403,2517.7,2517.6,8.55050486]
[1751640992706,0.79403,2517.7,2517.6,6.37273486]
[1751640993500,0.79403,2517.7,2517.6,3.2078]
[1751640993707,0.79407,2517.6,2517.5,0.653]
[1751640996420,0.79416,2517.3,2517.2,3.16493486]
[1751640996712,47.744,2517.3,2517.0,3.16493486]
[1751640996913,48.53816,2517.3,2517.2,2.38016527]
[1751640998613,0.79419,2517.2,2517.1,2.38016527]
[1751641001508,0.79435,2516.7,2516.6,0.709]
[1751641001714,37.24435,2516.7,2516.6,1.363]
[1751641002310,37.24435,2516.7,2516.6,2.15738]
[1751641002614,37.24435,2516.7,2516.6,1.363]
[1751641008020,0.79435,2516.7,2516.6,2.15736]
[1751641008220,37.24935,2516.7,2516.6,1.363]
[1751641008717,0.79441,2516.5,2516.4,3.2078]
[1751641009016,37.24741,2516.5,2516.4,3.2078]
[1751641011219,0.79444,2516.4,2516.3,0.79446]
[1751641011917,37.24743,2516.5,2516.4,0.79444]
[1751641012514,37.24743,2516.5,2516.3,1.3443]
[1751641012720,0.79444,2516.4,2516.3,2.13875]
[1751641013124,0.79444,2516.5,2516.4,0.79442]
[1751641013318,37.24744,2516.5,2516.4,0.79442]
[1751641013519,0.79441,2516.6,2516.5,0.79439]
[1751641013716,0.79441,2516.6,2516.5,2.19589]
[1751641013717,37.24741,2516.6,2516.5,2.19589]
[1751641014724,36.453,2516.6,2516.5,2.19589]
[1751641015022,0.79437,2516.7,2516.6,0.79438]
[1751641015222,37.24837,2516.7,2516.6,2.19588]
[1751641015726,37.24837,2516.7,2516.6,1.4015]
[1751641016423,37.24837,2516.7,2516.6,2.86008]
[1751641016823,37.24837,2516.7,2516.6,2.0657]
[1751641017225,37.24837,2516.7,2516.6,2.86008]
[1751641017522,37.24837,2516.7,2516.6,2.0657]
[1751641018326,37.24837,2516.7,2516.6,0.6642]
[1751641019422,0.79441,2516.5,2516.4,3.2078]
[1751641019826,0.79448,2516.3,2516.2,2.1894]
[1751641020123,37.24648,2516.3,2516.2,2.1894]
[1751641020829,36.451,2516.5,2516.2,1.3949]
[1751641021034,37.24541,2516.5,2516.4,3.2078]
[1751641022825,0.79439,2516.7,2516.4,3.2078]
[1751641023027,0.79433,2516.8,2516.7,0.79433]
[1751641023328,0.79437,2516.7,2516.6,0.79436]
[1751641023531,37.24537,2516.7,2516.6,0.79436]
[1751641023925,36.451,2516.7,2516.6,0.79436]
[1751641024124,36.451,2516.7,2516.5,3.35911]
[1751641024325,36.451,2516.7,2516.6,0.79438]
[1751641024628,37.24535,2516.7,2516.6,2.16748]
[1751641026330,0.79432,2516.9,2516.8,0.79429]
[1751641026531,37.24232,2516.9,2516.8,0.79429]
[1751641027032,37.24232,2516.9,2516.8,2.22069]
[1751641028434,0.79432,2516.8,2516.7,0.6724]
[1751641028827,37.2423,2516.9,2516.8,0.79432]
[1751641029025,0.79432,2516.8,2516.7,2.011]
[1751641029224,0.79432,2516.8,2516.7,2.80535]
[1751641029831,0.79432,2516.8,2516.7,0.6724]
[1751641030732,0.79432,2516.8,2516.7,1.46675]
[1751641030933,0.79432,2516.8,2516.7,0.6724]
[1751641032030,0.79432,2516.8,2516.7,1.46675]
[1751641032234,0.79432,2516.8,2516.7,4.67455]
[1751641032534,0.79432,2516.8,2516.7,3.8802]
[1751641032732,0.79432,2516.8,2516.7,4.67455]
[1751641032927,0.79431,2516.9,2516.8,0.79429]
[1751641033128,37.23731,2516.9,2516.8,0.79429]
[1751641033329,37.23731,2516.9,2516.8,2.17349]
[1751641033737,0.79428,2517.0,2516.9,0.79425]
[1751641033935,37.23628,2517.0,2516.9,0.79425]
[1751641034937,0.79429,2516.9,2516.8,2.1735]
[1751641036034,1.98549,2517.2,2516.8,1.3792]
[1751641036234,37.23425,2517.1,2517.0,0.79423]
[1751641037234,0.79425,2517.1,2517.0,1.48313]
[1751641037537,37.23325,2517.1,2517.0,1.48313]
[1751641038237,11.293,2517.3,2517.2,0.79419]
[1751641038541,37.23116,2517.3,2517.2,0.79419]
[1751641039142,0.79416,2517.3,2517.2,0.79419]
[1751641039339,4.00192,2517.5,2517.4,0.79413]
[1751641039547,0.79415,2517.4,2517.3,0.79413]
[1751641040239,0.79415,2517.4,2517.3,2.08123]
[1751641041549,37.22815,2517.4,2517.3,2.08123]
[1751641042745,37.22815,2517.4,2517.3,0.79416]
[1751641042945,0.79416,2517.3,2517.2,0.6798]
[1751641045242,0.79422,2517.1,2517.0,0.6889]
[1751641045646,0.79422,2517.1,2517.0,1.48315]
[1751641046041,0.79421,2517.2,2517.1,0.79419]
[1751641046250,1.98537,2517.4,2517.3,0.79414]
[1751641046251,37.22215,2517.4,2517.3,0.79414]
[1751641046856,4.00186,2517.7,2517.6,0.79407]
[1751641047155,40.42986,2517.7,2517.6,0.79407]
[1751641047354,40.42886,2517.7,2517.6,0.79407]
[1751641047743,0.7941,2517.6,2517.5,0.79407]
[1751641047945,0.7941,2517.6,2517.5,4.00187]
[1751641048758,0.7941,2517.6,2517.5,5.31677]
[1751641049659,0.79404,2517.8,2517.7,0.794]
[1751641049852,37.22004,2517.8,2517.7,0.794]
[1751641050058,0.79406,2517.7,2517.6,0.79404]
[1751641050459,37.22001,2517.8,2517.7,0.79403]
[1751641051961,0.79403,2517.7,2517.6,2.18635]
[1751641052263,0.79406,2517.6,2517.5,4.00189]
[1751641054458,0.79406,2517.6,2517.5,3.2078]
[1751641057472,0.7941,2517.5,2517.4,2.1521]
[1751641057771,37.2101,2517.5,2517.4,1.358]
[1751641058073,37.2101,2517.5,2517.2,4.6139]
[1751641058074,0.79416,2517.3,2517.2,4.00198]
[1751641058467,0.79415,2517.4,2517.3,0.79413]
[1751641059070,0.79416,2517.3,2517.2,4.00196]
[1751641061571,0.79416,2517.3,2517.2,3.2078]
[1751641061773,0.79416,2517.3,2517.2,4.00199]
[1751641063666,0.79422,2517.1,2517.0,3.16493486]
[1751641063873,37.20722,2517.1,2517.0,0.6913]
[1751641065175,0.79425,2517.0,2516.9,3.9203]
[1751641066773,0.79425,2517.0,2516.9,3.2078]
[1751641078679,0.79425,2517.0,2516.9,3.9058]
[1751641080088,0.79435,2516.7,2516.6,3.8825]
[1751641080281,0.79435,2516.7,2516.6,4.5764]
[1751641082586,37.20735,2516.7,2516.6,4.5764]
[1751641085185,37.20735,2516.7,2516.6,5.9689]
[1751641086787,37.20735,2516.7,2516.6,4.5764]
[1751641087990,37.20735,2516.7,2516.6,5.37078]
[1751641088187,37.20735,2516.7,2516.6,4.5764]
[1751641089086,37.20735,2516.7,2516.6,3.2078]
[1751641089485,0.79441,2516.5,2516.4,0.6579]
[1751641096186,0.79447,2516.3,2516.2,0.6832]
[1751641096388,37.20447,2516.3,2516.2,0.6832]
[1751641096592,37.20447,2516.3,2516.2,1.3714]
[1751641097689,0.79454,2516.1,2516.0,3.2078]
[1751641098402,38.39621,2516.3,2515.8,3.86683486]
[1751641098403,1.9863,2516.2,2515.8,3.86683486]
[1751641098690,0.7946,2515.9,2515.8,3.86683486]
[1751641098995,37.2046,2515.9,2515.8,0.7019]
[1751641099189,48.4876,2515.9,2515.8,0.7019]
[1751641099692,0.79463,2515.8,2515.7,3.16493486]
[1751641100088,47.693,2515.9,2515.6,3.896]
[1751641100089,0.79466,2515.7,2515.6,3.896]
[1751641102591,0.79466,2515.7,2515.6,5.2296]
[1751641102792,37.20666,2515.7,2515.6,5.2296]
[1751641102993,0.79466,2515.7,2515.6,5.2296]
[1751641103193,37.20566,2515.7,2515.6,5.2296]
[1751641103387,0.79466,2515.7,2515.6,6.02429]
[1751641103596,36.411,2515.7,2515.6,6.02429]
[1751641103799,59.21721,2516.3,2515.6,10.2296]
[1751641103993,59.21721,2516.3,2515.9,3.2078]
[1751641104297,0.79455,2516.1,2516.0,3.49083]
[1751641105096,58.02552,2516.3,2516.2,0.7945]
[1751641105392,37.20747,2516.4,2516.3,0.79444]
[1751641105797,0.79447,2516.4,2516.3,0.79444]
[1751641105987,0.79447,2516.3,2516.2,4.00228]
[1751641106191,0.79447,2516.3,2516.2,3.2078]
[1751641106695,0.79447,2516.3,2516.2,4.0023]
[1751641107297,0.79447,2516.3,2516.2,3.2078]
[1751641107495,1.98604,2516.5,2516.2,3.2078]
[1751641107697,0.79439,2516.6,2516.5,0.79441]
[1751641107893,0.79439,2516.6,2516.5,4.00221]
[1751641108392,0.79439,2516.6,2516.5,3.2078]
[1751641108594,0.79439,2516.6,2516.5,4.00221]
[1751641110098,0.79436,2516.7,2516.6,0.79436]
[1751641110299,0.79436,2516.7,2516.6,1.48766]
[1751641110897,0.79436,2516.7,2516.6,2.18726]
[1751641112300,0.79436,2516.7,2516.6,1.3929]
[1751641112600,0.79436,2516.7,2516.6,2.18728]
[1751641113296,36.409,2516.8,2516.6,1.3929]
[1751641113597,0.79435,2516.7,2516.6,2.18726]
[1751641114104,6.40854,2517.2,2516.6,1.3929]
[1751641114293,0.79423,2517.1,2517.0,0.79422]
[1751641114495,37.19421,2517.2,2517.1,0.79422]
[1751641115698,11.283,2517.4,2517.2,0.79419]
[1751641116001,11.283,2517.4,2517.2,0.79417]
[1751641116002,37.19418,2517.3,2517.2,0.79417]
[1751641116303,37.19418,2517.3,2517.2,1.50687]
[1751641117903,37.19418,2517.3,2517.2,0.7127]
[1751641118302,37.19418,2517.3,2517.2,1.50689]
[1751641118803,37.19418,2517.3,2517.2,0.7127]
[1751641119104,36.4,2517.3,2516.8,3.2078]
[1751641119403,0.79422,2517.1,2517.0,0.79424]
[1751641119905,36.4,2517.3,2516.9,1.2847]
[1751641120104,0.7942,2517.2,2517.1,0.7942]
[1751641121004,0.79425,2517.1,2517.0,0.79424]
[1751641121506,0.79426,2517.0,2516.9,0.79426]
[1751641121901,0.79424,2517.1,2517.0,0.79424]
[1751641124605,0.79425,2517.0,2516.9,2.08826]
[1751641126601,0.79424,2517.1,2517.0,0.79423]
[1751641126907,37.18017,2517.3,2517.2,0.79416]
[1751641127105,0.79417,2517.3,2517.2,4.00196]
[1751641127306,37.17917,2517.3,2517.2,3.2078]
[1751641128506,37.17917,2517.3,2517.2,4.00199]
[1751641128708,0.79417,2517.3,2517.2,4.00199]
[1751641129111,37.17717,2517.3,2517.2,4.00199]
[1751641129310,37.17717,2517.3,2517.2,4.65239]
[1751641129607,36.383,2517.3,2517.2,4.65239]
[1751641130004,37.17716,2517.3,2517.2,4.65239]
[1751641135109,0.79414,2517.5,2517.4,0.79411]
[1751641135605,37.17214,2517.5,2517.4,0.79411]
[1751641136811,37.17114,2517.5,2517.4,0.79411]
[1751641138608,11.9741,2517.7,2517.3,1.98537]
[1751641138807,11.275,2517.7,2517.6,0.79406]
[1751641139113,58.02501,2517.8,2517.7,0.79403]
[1751641139410,37.16799,2517.9,2517.8,0.794]
[1751641140009,36.374,2517.9,2517.5,3.2078]
[1751641140312,0.79406,2517.6,2517.5,4.00187]
[1751641141810,0.79406,2517.7,2517.6,0.79404]
[1751641142411,0.79406,2517.7,2517.5,3.2078]
[1751641142412,1.98478,2518.1,2517.5,5.19303]
[1751641142612,0.79399,2517.9,2517.8,0.79398]
[1751641142814,0.79399,2517.9,2517.8,4.00178]
[1751641143307,0.79399,2517.9,2517.8,4.66808]
[1751641144315,0.79399,2517.9,2517.8,3.8741]
[1751641145817,0.79406,2517.6,2517.5,3.2078]
[1751641146115,37.16006,2517.6,2517.5,3.2078]
[1751641146317,37.16006,2517.6,2517.5,4.00189]
[1751641146619,37.16006,2517.6,2517.5,3.2078]
[1751641146812,1.98527,2517.5,2517.1,3.16493486]
[1751641147117,0.79422,2517.1,2517.0,3.2078]
[1751641147319,37.15822,2517.1,2517.0,4.00205]
[1751641147914,37.15822,2517.1,2517.0,3.2078]
[1751641151513,37.15822,2517.1,2517.0,4.00205]
[1751641151713,37.15822,2517.1,2517.0,3.2078]
[1751641152514,37.15822,2517.1,2517.0,4.00205]
[1751641153719,37.15822,2517.1,2517.0,4.69675]
[1751641154626,37.15822,2517.1,2517.0,3.2078]
[1751641155428,37.15822,2517.1,2517.0,4.00205]
[1751641156229,36.364,2517.1,2517.0,4.00205]
[1751641156431,0.79413,2517.4,2517.0,3.2078]
[1751641156630,0.79413,2517.4,2517.3,4.00196]
[1751641156928,37.15813,2517.4,2517.3,4.00196]
[1751641158729,0.79413,2517.4,2517.3,4.00196]
[1751641158938,12.06211,2517.5,2517.4,0.79413]
[1751641159533,48.42411,2517.5,2517.4,0.79413]
[1751641160837,48.42409,2517.5,2517.4,0.79413]
[1751641161829,48.42209,2517.5,2517.4,0.79413]
[1751641162835,11.268,2517.5,2517.4,0.79413]
[1751641163040,0.79407,2517.6,2517.5,0.79404]
[1751641163238,37.15307,2517.6,2517.5,0.79404]
[1751641166938,37.15307,2517.6,2517.4,1.3977]
[1751641167135,0.79409,2517.5,2517.4,2.1918]
[1751641172244,36.359,2517.6,2517.3,3.2078]
[1751641172245,0.79413,2517.4,2517.3,3.2078]
[1751641178251,0.79422,2517.1,2517.0,0.6996]
[1751641178847,0.79422,2517.1,2517.0,1.49385]
[1751641179048,36.349,2517.2,2517.0,0.6996]
[1751641179049,37.1432,2517.2,2517.0,0.6996]
[1751641179244,37.1432,2517.2,2517.1,0.79422]
[1751641179550,36.349,2517.2,2517.1,0.79422]
[1751641179749,36.349,2517.2,2517.1,2.16482]
[1751641180754,37.14319,2517.2,2517.1,2.16482]
[1751641183050,0.79422,2517.1,2517.0,1.49383]
[1751641183553,37.14321,2517.2,2517.1,0.79422]
[1751641185651,0.79422,2517.1,2517.0,0.6996]
[1751641186952,0.79422,2517.1,2517.0,4.65878486]
[1751641187354,0.79422,2517.1,2517.0,1.49385]
[1751641191350,36.349,2517.2,2517.0,1.49385]
[1751641191554,37.14321,2517.2,2517.1,0.79422]
[1751641191758,0.79413,2517.4,2517.3,0.79416]
[1751641191949,37.13813,2517.4,2517.3,0.79416]
[1751641192955,0.79419,2517.3,2517.2,0.79417]
[1751641193254,0.79422,2517.2,2517.1,0.79419]
[1751641193649,0.79418,2517.3,2517.2,0.79416]
[1751641195056,0.79418,2517.3,2517.2,4.00196]
[1751641199460,36.344,2517.4,2517.2,4.00196]
[1751641199658,0.79409,2517.6,2517.2,3.2078]
[1751641199860,0.79411,2517.5,2517.4,0.79411]
[1751641200061,0.79413,2517.4,2517.3,5.12673486]
[1751641200263,0.79413,2517.5,2517.4,0.79411]
[1751641200457,0.79413,2517.4,2517.3,5.12673486]
[1751641200664,0.79416,2517.3,2517.2,6.37273486]
[1751641200960,0.79416,2517.3,2517.2,3.2078]
[1751641202559,0.79425,2517.0,2516.9,7.82590486]
[1751641202757,37.13325,2517.0,2516.9,7.82590486]
[1751641202963,37.13325,2517.0,2516.9,3.82383486]
[1751641203369,37.13325,2517.0,2516.9,3.16493486]
[1751641203564,36.339,2517.0,2516.8,3.16493486]
[1751641203769,37.13328,2517.0,2516.9,0.79428]
[1751641204060,37.13328,2517.0,2516.8,3.16493486]
[1751641204061,0.79432,2516.8,2516.7,3.16493486]
[1751641204266,0.7943,2516.9,2516.6,3.8591]
[1751641204470,37.13332,2516.8,2516.7,1.2999]
[1751641204666,36.339,2516.8,2516.7,2.09425]
[1751641204864,41.59431,2516.9,2516.8,0.79432]
[1751641205065,11.263,2517.1,2517.0,0.79425]
[1751641205266,47.602,2517.1,2517.0,0.79425]
[1751641205469,48.39622,2517.1,2517.0,0.79425]
[1751641205968,40.8,2517.2,2517.1,0.79422]
[1751641206263,11.263,2517.3,2517.2,0.79419]
[1751641206469,11.263,2517.4,2517.3,0.79414]
[1751641206764,11.263,2517.4,2517.3,4.00194]
[1751641207664,37.13412,2517.5,2517.3,3.2078]
[1751641207864,37.13412,2517.5,2517.4,0.79413]
[1751641208073,37.13312,2517.5,2517.4,0.79413]
[1751641208271,0.79413,2517.4,2517.3,5.29833]
[1751641208466,37.13312,2517.5,2517.4,0.79413]
[1751641208667,36.339,2517.5,2517.4,0.79413]
[1751641208869,36.339,2517.5,2517.3,4.5042]
[1751641208870,0.79413,2517.4,2517.3,5.29833]
[1751641209063,0.79413,2517.4,2517.3,3.2078]
[1751641209264,0.79419,2517.3,2517.2,0.79419]
[1751641209876,0.79419,2517.2,2517.1,1.5039]
[1751641210067,0.79417,2517.3,2517.2,0.79418]
[1751641210673,0.79419,2517.3,2517.2,0.79418]
[1751641211172,36.339,2517.5,2517.3,0.79414]
[1751641211173,0.79414,2517.4,2517.3,0.79414]
[1751641211572,0.79418,2517.3,2517.2,0.79418]
[1751641212069,0.79418,2517.3,2517.2,4.00198]
[1751641212766,0.79418,2517.3,2517.2,3.2078]
[1751641213967,1.79814587,2517.3,2517.2,3.2078]
[1751641214267,0.79418,2517.3,2517.2,3.2078]
[1751641214469,0.79425,2517.0,2516.9,3.2078]
[1751641214670,37.13025,2517.0,2516.9,3.2078]
[1751641214867,36.336,2517.0,2516.9,4.00208]
[1751641215172,48.39021,2517.2,2517.1,0.7942]
[1751641215373,48.39022,2517.2,2517.1,0.79422]
[1751641216066,1.98514,2517.7,2516.9,9.75482486]
[1751641216267,3.2078,2517.8,2517.4,0.79409]
[1751641216268,0.7941,2517.5,2517.4,0.79409]
[1751641216570,12.05308,2517.6,2517.5,0.79409]
[1751641216777,47.595,2517.6,2517.5,0.79409]
[1751641216963,47.595,2517.6,2517.5,2.19049]
[1751641217569,11.259,2517.6,2517.5,2.83339]
[1751641217872,47.595,2517.6,2517.5,2.83339]
[1751641218472,3.2078,2518.1,2517.5,2.0393]
[1751641218673,11.258,2517.8,2517.7,4.00181]
[1751641219475,47.592,2517.8,2517.7,4.00181]
[1751641219676,48.386,2517.8,2517.7,4.00181]
[1751641220574,48.386,2517.8,2517.7,3.2078]
[1751641221681,48.386,2517.8,2517.7,4.00183]
[1751641221881,48.386,2517.8,2517.7,5.30413]
[1751641222179,48.386,2517.8,2517.7,4.5101]
[1751641222871,0.794,2517.8,2517.7,4.5101]
[1751641223078,37.126,2517.8,2517.7,4.5101]
[1751641223480,37.126,2517.8,2517.7,5.30413]
[1751641223869,11.258,2518.0,2517.7,5.30413]
[1751641223870,12.05195,2518.0,2517.9,0.79397]
[1751641224180,37.12494,2518.0,2517.9,0.79397]
[1751641224381,0.79393,2518.1,2518.0,0.79391]
[1751641224582,37.12293,2518.1,2518.0,4.00171]
[1751641224778,0.79393,2518.1,2518.0,3.2078]
[1751641225083,37.12293,2518.1,2518.0,4.6179]
[1751641225282,37.12293,2518.1,2518.0,5.41184]
[1751641226574,0.79389,2518.2,2518.1,0.79389]
[1751641226776,37.12289,2518.2,2518.1,0.79389]
[1751641227583,0.7939,2518.1,2518.0,5.41182]
[1751641227778,0.7939,2518.1,2518.0,5.41184]
[1751641228585,0.7939,2518.1,2518.0,4.6179]
[1751641228884,0.7939,2518.1,2518.0,3.2078]